Workbook

Sheet Лист 1
A1: Школа | B1: МБОУ "Гимназия №3 с татарским языком обучения" | E1: Отд./корп | I1: День | J1: 2022-11-14
A2: № 45 Сбор. 2015 г Дели | B2: САЛАТ ИЗ БЕЛОКОЧАННОЙ КАПУСТЫ 60 (капуста,морковь,сахар,м/растит) | F2: 60 | H2: 0.931 | I2: 3.051 | J2: 5.640 | L2: 54
A3: ТТК № 1154 от 09.10.2020 г | B3: ТЕФТЕЛИ ИЗ ГОВЯДИНЫ В СОУСЕ ТОМАТНОМ 70/40 г | F3: 70/40 | H3: 9.240 | I3: 6.830 | J3: 8.460 | L3: 132
A4: ТТК 2014г | B4: КАША ГРЕЧНЕВАЯ РАССЫПЧАТАЯ 150 г | F4: 150 | H4: 0.140 | I4: 0.010 | J4: 24.430 | L4: 101
A5: ТТК от 2021г | B5: ЧАЙ С САХАРОМ 200/8 г | F5: 200/8 | H5: 0.021 | J5: 7.980 | L5: 32
A6: Акт от 2021г | B6: ПЕЧЕНЬЕ СДОБНОЕ ШОКОЛАДНОЕ 30 г КП | F6: 30 | H6: 4.410 | I6: 7.240 | J6: 20.510 | L6: 164
B7: ХЛЕБ РЖАНО - ПШЕНИЧНЫЙ 25 г | F7: 25 | H7: 1.250 | I7: 0.250 | J7: 11.250 | L7: 55
A8: Итого: | G8: 62.10 | H8: =SUM(H2:H7) -> 15.99 | I8: =SUM(I2:I7) -> 17.38 | J8: =SUM(J2:J7) -> 78.27 | L8: =SUM(L2:L7) -> 538

Sheet Лист 2
A1: Школа | B1: МБОУ "Гимназия №3 с татарским языком обучения" | E1: Отд./корп | I1: День | J1: 2022-11-15
A2: № 338 Дели 2015 г | B2: ПЛОДЫ И ЯГОДЫ СВЕЖИЕ (ЯБЛОКИ) 100 г | F2: 100 | H2: 0.400 | I2: 0.400 | J2: 9.800 | L2: 47
A3: ТТК (Акт 19.09.2018 г) | B3: БЛИНЧИКИ СО СГУЩЕННЫМ МОЛОКОМ 1 шт/45/10 г ( 45 г п/ф комбинат 19.09.2018г) | F3: 45/10 | H3: 2.190 | I3: 2.520 | J3: 13.500 | L3: 85
A4: ТТК 2021г июль | B4: РАГУ ИЗ ФИЛЕ КУРИНЫХ ГРУДОК 40/120 г | F4: 40/120 | H4: 12.630 | I4: 15.180 | J4: 20.160 | L4: 267
A5: № 699 Сбор. рец. 2004 год | B5: НАПИТОК ЛИМОННЫЙ 200 г | F5: 200 | H5: 0.144 | I5: 0.010 | J5: 24.432 | L5: 101
B6: ХЛЕБ РЖАНО - ПШЕНИЧНЫЙ 20 г | F6: 20 | H6: 1.000 | I6: 0.200 | J6: 9.000 | L6: 44
B7: ХЛЕБ ПШЕНИЧНЫЙ 15 г | F7: 15 | H7: 1.140 | I7: 0.120 | J7: 7.380 | L7: 35
A8: Итого: | G8: 62.10 | H8: =SUM(H2:H7) -> 17.50 | I8: =SUM(I2:I7) -> 18.43 | J8: =SUM(J2:J7) -> 84.27 | L8: =SUM(L2:L7) -> 579

Sheet Лист 3
A1: Школа | B1: МБОУ "Гимназия №3 с татарским языком обучения" | E1: Отд./корп | I1: День | J1: 2022-11-16
A2: № 338 Дели 2015 г | B2: ПЛОДЫ И ЯГОДЫ СВЕЖИЕ (ЯБЛОКИ) 100 г | F2: 100 | H2: 0.400 | I2: 0.400 | J2: 9.800 | L2: 47
A3: №49 Сбор. 2004г./ТТК | B3: САЛАТ ИЗ МОРКОВИ 60 г | F3: 60 | H3: 0.632 | I3: 6.043 | J3: 9.341 | L3: 95
A4: ТТК Апрель 2022 г | B4: КОТЛЕТЫ ПОЖАРСКИЕ ЗАПЕЧЕНЫЕ С СОУСОМ ТОМАТНЫМ | F4: 80/10 | H4: 8.350 | I4: 6.710 | J4: 0.200 | L4: 95
A5: по акту от 24.02.2011г | B5: МАКАРОНЫ ТВЕРДЫХ СОРТОВ ОТВАРНЫЕ (масло раст.) 150 г | F5: 150 | H5: 5.602 | I5: 5.060 | J5: 35.906 | L5: 212
A6: ТТК 2021 г | B6: КОМПОТ ИЗ ЗАМОРОЖЕННОЙ КОМПОТНОЙ СМЕСИ 200 г | F6: 200 | H6: 0.130 | I6: 0.020 | J6: 11.150 | L6: 46
B7: ХЛЕБ РЖАНО - ПШЕНИЧНЫЙ 20 г | F7: 20 | H7: 1.000 | I7: 0.200 | J7: 9.000 | L7: 44
B8: ХЛЕБ ПШЕНИЧНЫЙ 20 г | F8: 20 | H8: 1.520 | I8: 0.160 | J8: 9.840 | L8: 47
A9: Итого: | G9: 62.10 | H9: =SUM(H2:H8) -> 17.63 | I9: =SUM(I2:I8) -> 18.59 | J9: =SUM(J2:J8) -> 85.24 | L9: =SUM(L2:L8) -> 586

Sheet Лист 4
A1: Школа | B1: МБОУ "Гимназия №3 с татарским языком обучения" | E1: Отд./корп | I1: День | J1: 2022-11-17
A2: № 338 Дели 2015 г | B2: ПЛОДЫ И ЯГОДЫ СВЕЖИЕ (ЯБЛОКИ) 100 г | F2: 100 | H2: 0.400 | I2: 0.400 | J2: 9.800 | L2: 47
A3: Сб.,М:ДеЛи плюс,2015,рец.№52 | B3: САЛАТ ИЗ СВЕКЛЫ ОТВАРНОЙ (с маслом) 60 г | F3: 60 | H3: 0.850 | I3: 3.653 | J3: 5.016 | L3: 56
A4: ТТК от 18.02.2021г | B4: ПЛОВ С КУРИНЫМИ ГРУДКАМИ 50/150 г | F4: 50/150 | H4: 12.420 | I4: 10.010 | J4: 26.010 | L4: 244
A5: ТТК от 2021г | B5: НАПИТОК ИЗ ШИПОВНИКА 200 г | F5: 200 | H5: 0.100 | J5: 10.180 | L5: 41
A6: ТТК от 2021г | B6: ПЕЧЕНЬЕ СДОБНОЕ АМЕРИКАНЕР С КУНЖУТОМ 15 г КП | F6: 15 | H6: 0.500 | I6: 1.620 | J6: 5.250 | L6: 38
B7: ХЛЕБ РЖАНО - ПШЕНИЧНЫЙ 30 г | F7: 30 | H7: 1.500 | I7: 0.300 | J7: 13.500 | L7: 66
A8: Итого: | G8: 62.10 | H8: =SUM(H2:H7) -> 15.77 | I8: =SUM(I2:I7) -> 15.98 | J8: =SUM(J2:J7) -> 69.76 | L8: =SUM(L2:L7) -> 492

Sheet Лист 5
A1: Школа | B1: МБОУ "Гимназия №3 с татарским языком обучения" | E1: Отд./корп | I1: День | J1: 2022-11-18
A2: № 49 Сбор.2004г. | B2: САЛАТ ИЗ МОРКОВИ С ЯБЛОКАМИ 60 г | F2: 60 | H2: 0.594 | I2: 6.084 | J2: 5.272 | L2: 79
A3: ТТК Апрель 2022 г | B3: ЁЖИКИ МЯСНЫЕ С РИСОМ В СОУСЕ ТОМАТНОМ 60 /40 г | F3: 60/40 | H3: 9.560 | I3: 8.420 | J3: 10.230 | L3: 155
A4: по акту от21.09.2020 | B4: ПЮРЕ КАРТОФЕЛЬНОЕ 150 г | F4: 150 | H4: 3.280 | I4: 4.650 | J4: 22.020 | L4: 146
A5: ТТК 2021 г | B5: КОМПОТ ИЗ ЗАМОРОЖЕННОЙ ВИШНИ 200 г | F5: 200 | H5: 0.120 | I5: 0.030 | J5: 11.570 | L5: 48
B6: ХЛЕБ РЖАНО - ПШЕНИЧНЫЙ 20 г | F6: 20 | H6: 1.000 | I6: 0.200 | J6: 9.000 | L6: 44
B7: ХЛЕБ ПШЕНИЧНЫЙ 20 г | F7: 20 | H7: 1.520 | I7: 0.160 | J7: 9.840 | L7: 47
A8: Итого: | G8: 62.10 | H8: =SUM(H2:H7) -> 16.07 | I8: =SUM(I2:I7) -> 19.54 | J8: =SUM(J2:J7) -> 67.93 | L8: =SUM(L2:L7) -> 519
